fUSD/lending_fUSD_20240505
["ID","MTS","AMOUNT","RATE_DAILY","PERIOD"]
[326446771,1714915879435,-3203.3,0.00033972,8]
[326446772,1714915879444,-5886.12,0.00033972,8]
[326446773,1714915879453,-2071.85,0.00033972,8]
[326446774,1714915879463,-2470.94,0.00033972,8]
[326446775,1714915879472,-500.0,0.00033972,8]
[326446776,1714915879482,-4705.29,0.00033972,8]
[326446777,1714915879491,-2726.24,0.00033972,8]
[326446778,1714915879500,-2276.25,0.00033972,8]
[326446779,1714915879509,-418.92336119,0.00033972,8]
[326446780,1714915879523,-8502.89,0.00033972,8]
[326446781,1714915879532,-613.39,0.00033972,8]
[326446782,1714915879541,-4607.88,0.00033972,8]
[326446783,1714915879550,-838.85,0.00033972,8]
[326446784,1714915879559,-1527.86,0.00033972,8]
[326446785,1714915879567,-8969.31,0.00033972,8]
[326446786,1714915879576,-1879.25,0.00033972,8]
[326446787,1714915879586,-500.0,0.00033972,8]
[326446788,1714915879596,-2607.17,0.00033972,8]
[326446789,1714915879606,-5123.78,0.00033972,8]
[326446790,1714915879615,-2388.99,0.00033972,8]
[326446791,1714915879625,-903.73,0.00033972,7]
[326446792,1714915879634,-2263.71,0.00033972,8]
[326446793,1714915879644,-5667.8,0.00033972,8]
[326446794,1714915879653,-5194.94,0.00033972,8]
[326446795,1714915879662,-744.91,0.00033972,8]
[326446796,1714915879672,-4597.47,0.00033972,8]
[326446797,1714915879681,-696.37,0.00033972,8]
[326446798,1714915879691,-692.63,0.00033972,8]
[326446799,1714915879700,-977.21,0.00033972,8]
[326446800,1714915879710,-617.21,0.00033972,8]
[326446801,1714915879719,-1364.11,0.00033972,8]
[326446802,1714915879729,-500.0,0.00033972,8]
[326446803,1714915879738,-11629.41,0.00033972,8]
[326446804,1714915879748,-500.0,0.00033972,8]
[326446805,1714915879757,-1747.92,0.00033972,8]
[326446806,1714915879770,-3096.31,0.00033972,8]
[326446807,1714915879779,-500.0,0.00033972,8]
[326446808,1714915879788,-1400.34,0.00033972,8]
[326446809,1714915879797,-5969.29,0.00033972,8]
[326446810,1714915879806,-1015.77,0.00033972,8]
[326446811,1714915879815,-1117.96,0.00033972,8]
[326446812,1714915879825,-500.0,0.00033972,8]
[326446813,1714915879834,-586.83,0.00033972,8]
[326446814,1714915879843,-784.12,0.00033972,8]
[326446815,1714915879852,-2175.8,0.00033972,8]
[326446816,1714915879862,-500.0,0.00033972,8]
[326446817,1714915879871,-959.72,0.00033973,2]
[326446818,1714915879880,-911.93,0.00033973,2]
[326446819,1714915879889,-414.53,0.00033973,2]
[326446820,1714915879898,-911.93,0.00033973,2]
[326446821,1714915879907,-911.93,0.00033973,2]
[326446822,1714915879917,-414.53,0.00033973,2]
[326446823,1714915879926,-414.53,0.00033973,2]
[326446824,1714915879936,-911.93,0.00033973,2]
[326446825,1714915879945,-414.53,0.00033973,2]
[326446826,1714915879955,-911.93,0.00033973,2]
[326446827,1714915879964,-648.83091385,0.00033973,30]
[326446828,1714915879974,-5243.39034367,0.00033997,6]
[326446829,1714915879983,-50000.0,0.00034,14]
[326446830,1714915879993,-1000.0,0.00034,6]
[326446831,1714915880002,-370.46,0.00034,2]
[326446832,1714915880012,-648.83091385,0.00034137,30]
[326446833,1714915880022,-176.97149162,0.00034146,6]
[326446834,1714915880032,-371.0,0.0003417,15]
[326446835,1714915880041,-529.0,0.0003417,15]
[326446836,1714915880051,-371.0,0.0003418,15]
[326446837,1714915880060,-529.0,0.0003418,15]
[326446838,1714915880069,-371.0,0.0003419,15]
[326446839,1714915880079,-529.0,0.0003419,15]
[326446840,1714915880089,-3405.8,0.00034245,19]
[326446841,1714915880098,-981.79,0.00034246,9]
[326446842,1714915880107,-2040.13,0.00034246,9]
[326446843,1714915880117,-731.26,0.00034246,9]
[326446844,1714915880126,-1079.74,0.00034246,9]
[326446845,1714915880135,-1337.71,0.00034246,9]
[326446846,1714915880144,-876.4,0.00034246,9]
[326446847,1714915880154,-3101.41,0.00034246,9]
[326446848,1714915880163,-594.18,0.00034246,9]
[326446849,1714915880172,-627.2,0.00034246,9]
[326446850,1714915880182,-989.83,0.00034246,9]
[326446851,1714915880191,-597.1,0.00034246,9]
[326446852,1714915880204,-500.0,0.00034246,9]
[326446853,1714915880213,-1689.15,0.00034246,9]
[326446854,1714915880228,-2343.43,0.00034246,9]
[326446855,1714915880238,-642.33,0.00034246,9]
[326446856,1714915880247,-2302.68,0.00034246,9]
[326446857,1714915880256,-183.51541892,0.00034246,9]
[326446858,1714915880266,-1805.51,0.00034246,9]
[326446859,1714915880276,-500.0,0.00034246,9]
[326446860,1714915880285,-1353.31,0.00034246,9]
[326446861,1714915880295,-3452.97,0.00034246,9]
[326446862,1714915880305,-782.5,0.00034246,9]
[326446863,1714915880314,-500.0,0.00034246,9]
[326446864,1714915880323,-1480.66,0.00034246,9]
[326446865,1714915880332,-818.96,0.00034246,9]
[326446866,1714915880341,-2042.7,0.00034246,9]
[326446867,1714915880351,-500.0,0.00034246,9]
[326446868,1714915880360,-500.0,0.00034246,9]
[326446869,1714915880369,-1939.6,0.00034246,9]
[326446870,1714915880378,-1595.12,0.00034246,9]
[326446871,1714915880388,-500.0,0.00034246,9]
[326446872,1714915880397,-581.13,0.00034246,9]
[326446873,1714915880406,-3387.56,0.00034246,9]
[326446874,1714915880415,-880.76,0.00034246,9]
[326446875,1714915880424,-1944.07,0.00034246,9]
[326446876,1714915880434,-500.0,0.00034246,9]
[326446877,1714915880443,-806.39,0.00034246,9]
[326446878,1714915880452,-724.09,0.00034246,9]
[326446879,1714915880461,-2108.93,0.00034246,9]
[326446880,1714915880472,-1670.81,0.00034246,9]
[326446881,1714915880481,-1039.87,0.00034246,9]
[326446882,1714915880491,-2155.45,0.00034246,9]
[326446883,1714915880500,-500.0,0.00034246,9]
[326446884,1714915880509,-1638.75,0.00034246,9]
[326446885,1714915880520,-772.66,0.00034246,9]
[326446886,1714915880530,-1025.2,0.00034246,9]
[326446887,1714915880602,-1717.6,0.00034246,9]
[326446888,1714915880612,-1651.01,0.00034246,9]
[326446889,1714915880622,-1939.75,0.00034246,9]
[326446890,1714915880631,-1227.88,0.00034246,9]
[326446891,1714915880641,-1682.89,0.00034246,9]
[326446892,1714915880650,-1205.56,0.00034246,9]
[326446893,1714915880660,-500.0,0.00034246,9]
[326446894,1714915880670,-1747.37,0.00034246,9]
[326446895,1714915880679,-2215.85,0.00034246,9]
[326446896,1714915880688,-649.64,0.00034246,9]
[326446897,1714915880697,-566.84,0.00034246,9]
[326446898,1714915880706,-500.0,0.00034246,9]
[326446899,1714915880716,-1356.01,0.00034246,9]
[326446900,1714915880725,-500.0,0.00034246,9]
[326446901,1714915880734,-1176.3,0.00034246,9]
[326446902,1714915880744,-1366.45,0.00034246,9]
[326446903,1714915880754,-684.39,0.00034246,9]
[326446904,1714915880765,-879.33,0.00034246,9]
[326446905,1714915880774,-920.07,0.00034246,9]
[326446906,1714915880783,-1031.58,0.00034246,9]
[326446907,1714915880792,-2063.31,0.00034246,9]
[326446908,1714915880802,-2434.24,0.00034246,9]
[326446909,1714915880811,-597.44,0.00034246,9]
[326446910,1714915880819,-713.31,0.00034246,9]
[326446911,1714915880829,-500.0,0.00034246,2]
[326446912,1714915880838,-600.45,0.00034246,9]
[326446913,1714915880847,-500.0,0.00034246,9]
[326446914,1714915880856,-952.7,0.00034246,9]
[326446915,1714915880865,-500.0,0.00034246,9]
[326446916,1714915880875,-802.54,0.00034246,9]
[326446917,1714915880883,-1024.94,0.00034246,9]
[326446918,1714915880894,-802.41,0.00034246,9]
[326446919,1714915880903,-687.56,0.00034246,9]
[326446920,1714915880913,-2386.25,0.00034246,9]
[326446921,1714915880922,-1223.23,0.00034246,9]
[326446922,1714915880932,-854.56,0.00034246,9]
[326446923,1714915880942,-500.0,0.00034246,9]
[326446924,1714915880953,-500.0,0.00034246,9]
[326446925,1714915880962,-1748.83,0.00034246,9]
[326446926,1714915880971,-527.62,0.00034246,9]
[326446927,1714915880981,-803.14,0.00034246,9]
[326446928,1714915880991,-3740.0,0.00034246,9]
[326446929,1714915881000,-1004.08,0.00034246,9]
[326446930,1714915881009,-1502.83,0.00034246,9]
[326446931,1714915881020,-500.0,0.00034246,9]
[326446932,1714915881029,-500.0,0.00034246,9]
[326446933,1714915881038,-500.0,0.00034246,9]
[326446934,1714915881046,-500.0,0.00034246,9]
[326446935,1714915881056,-1438.2,0.00034246,9]
[326446936,1714915881065,-500.0,0.00034246,9]
[326446937,1714915881074,-500.0,0.00034246,9]
[326446938,1714915881083,-500.0,0.00034246,9]
[326446939,1714915881092,-1909.06,0.00034246,9]
[326446940,1714915881101,-913.79,0.00034246,9]
[326446941,1714915881110,-577.34,0.00034246,9]
[326446942,1714915881119,-500.0,0.00034246,9]
[326446943,1714915881128,-596.69,0.00034246,9]
[326446944,1714915881137,-660.81,0.00034246,9]
[326446945,1714915881147,-717.92,0.00034246,9]
[326446946,1714915881156,-605.11,0.00034246,9]
[326446947,1714915881164,-500.0,0.00034246,9]
[326446948,1714915881173,-776.57,0.00034246,9]
[326446949,1714915881183,-986.28,0.00034246,9]
[326446950,1714915881192,-1164.45,0.00034246,9]
[326446951,1714915881205,-1851.14,0.00034246,9]
[326446952,1714915881215,-500.0,0.00034246,9]
[326446953,1714915881224,-1222.01,0.00034246,9]
[326446954,1714915881234,-500.0,0.00034246,9]
[326446955,1714915881244,-589.56,0.00034246,9]
[326446956,1714915881254,-801.86,0.00034246,9]
[326446957,1714915881267,-500.0,0.00034246,9]
[326446958,1714915881276,-1661.78,0.00034246,9]
[326446959,1714915881285,-628.8,0.00034246,9]
[326446960,1714915881294,-500.0,0.00034246,9]
[326446961,1714915881305,-2313.78,0.00034246,9]
[326446962,1714915881314,-1704.0,0.00034246,9]
[326446963,1714915881323,-2719.15451696,0.00034246,9]
[326446964,1714915881791,-127.48548304,0.00034246,9]
[326446965,1714915881801,-500.0,0.00034246,9]
[326446966,1714915881810,-500.0,0.00034246,9]
[326446967,1714915881820,-1167.95,0.00034246,9]
[326446968,1714915881829,-1036.27,0.00034246,9]
[326446969,1714915881839,-1244.75,0.00034246,9]
[326446970,1714915881848,-1662.54,0.00034246,9]
[326446971,1714915881857,-176.43481434,0.00034246,9]
[326446972,1714915881870,-323.56518566,0.00034246,9]
[326446973,1714915881880,-1214.84,0.00034246,9]
[326446974,1714915881889,-1924.39,0.00034246,9]
[326446975,1714915881898,-500.0,0.00034246,9]
[326446976,1714915881908,-2178.68,0.00034246,9]
[326446977,1714915881917,-707.19,0.00034246,9]
[326446978,1714915881927,-538.64,0.00034246,9]
[326446979,1714915881937,-1834.53,0.00034246,9]
[326446980,1714915881946,-500.0,0.00034246,9]
[326446981,1714915881955,-727.02,0.00034246,9]
[326446982,1714915881964,-2359.18,0.00034246,9]
[326446983,1714915881973,-592.28,0.00034246,9]
[326446984,1714915881983,-728.13,0.00034246,9]
[326446985,1714915881992,-500.0,0.00034246,9]
[326446986,1714915882001,-830.03,0.00034246,9]
[326446987,1714915882009,-1811.31134159,0.00034246,9]
[326446988,1714916002547,1100.0,0.0003,120]
[326446989,1714916038139,165.14,0.00026044,120]
[326447095,1714916893384,-409.60477749,0.00012399,2]
[326447096,1714916893409,-1497.63272264,0.000125,2]
[326447097,1714916893437,-1135.3087,0.00012798,2]
[326447098,1714916893462,-150.0,0.00012877,2]
[326447099,1714916893486,-150.0,0.00012899,2]
[326447100,1714916893511,-165.94728317,0.000129,2]
[326447101,1714916893535,-11177.7439,0.000129,2]
[326447102,1714916893563,-1000.0,0.000129,2]
[326447103,1714916893587,-371.63824798,0.0001299,2]
[326447104,1714916893613,-7288.3114396,0.0001299,2]
[326447105,1714916893640,-4589.16668298,0.00012997,2]
[326447106,1714916893665,-171.48085819,0.00012998,2]
[326447107,1714916893688,-499.99,0.00012998,2]
[326447108,1714916893711,-389.220126,0.00012998,2]
[326447109,1714916893739,-1746.7,0.00012998,2]
[326447110,1714916893763,-364.1795897,0.00012999,2]
[326447112,1714916911678,-488.00599165,0.00012999,2]
[326447113,1714916911705,-99511.99400835,0.00013,2]
[326447115,1714917031863,-1207.25055356,0.000129,2]
[326447116,1714917031873,-1038.18524708,0.00013,2]
[326447117,1714917031917,-286.18192272,0.00013,2]
[326447118,1714917031972,-1411.54365452,0.00013,2]
[326447119,1714917031986,-1800.68,0.00013,2]
[326447120,1714917032050,-434.33736611,0.00013,2]
[326447121,1714917032083,-689.30241408,0.00013,2]
[326447122,1714917032095,-387.51100691,0.00013,2]
[326447123,1714917032106,-1135.78589856,0.00013,2]
[326447124,1714917032137,-355.52000041,0.00013,2]
[326447125,1714917032148,-15217.2156,0.00013,2]
[326447126,1714917032161,-30915.17661549,0.00013,2]
[326447127,1714917032193,-519.01089523,0.00013,2]
[326447128,1714917032203,-670.45812629,0.00013,2]
[326447129,1714917032213,-1400.0,0.00013,2]
[326447130,1714917032224,-1004.02797844,0.00013,2]
[326447131,1714917032485,-1480.36499658,0.00013,2]
[326447132,1714917032497,-696.77431602,0.00013,2]
[326447139,1714917037868,-2952.31824376,0.00013,2]
[326447140,1714917037880,-1292.04521374,0.00013,2]
[326447141,1714917038034,-12074.99943737,0.00013,2]
[326447142,1714917038086,-22378.66783737,0.00013,2]
[326447143,1714917038097,-977.69249947,0.00013,2]
[326447144,1714917038119,-270.99999998,0.00013,2]
[326447145,1714917038239,-473.3383626,0.00013,2]
[326447146,1714917038251,-115089.41526321,0.00013,2]
[326447148,1714917038261,-352323.26618512,0.00013,2]
[326447150,1714917038271,-603.83516925,0.00016207,2]
[326447152,1714917038281,-500.0,0.00016307,2]
[326447154,1714917038290,-1273.63,0.00016712,2]
[326447156,1714917038299,-267.65,0.00017159,2]
[326447157,1714917038309,-300.0,0.00017159,2]
[326447158,1714917038318,-154.29,0.00017394,2]
[326447159,1714917038327,-154.29,0.00017495,2]
[326447160,1714917038337,-603.83516919,0.0001755,2]
[326447161,1714917038346,-154.29,0.00017596,2]
[326447162,1714917038355,-154.29,0.00017696,2]
[326447163,1714917038364,-154.29,0.00017797,2]
[326447164,1714917038374,-164.48,0.00017823,2]
[326447165,1714917038383,-1040.32164102,0.0001788,2]
[326447166,1714917038392,-1040.32164097,0.0001788,2]
[326447167,1714917038401,-1040.32164097,0.0001788,2]
[326447168,1714917038411,-2344.39680733,0.0001788,2]
[326447169,1714917038420,-2344.39680726,0.0001788,2]
[326447170,1714917038429,-2344.39680726,0.0001788,2]
[326447177,1714917038690,-154.29,0.00017898,2]
[326447178,1714917038699,-154.29,0.00017998,2]
[326447179,1714917038709,-450.0,0.00018,3]
[326447180,1714917038718,-154.29,0.00018099,2]
[326447181,1714917038727,-154.29,0.000182,2]
[326447182,1714917038739,-154.29,0.00018301,2]
[326447183,1714917038748,-171.55,0.00018567,2]
[326447184,1714917038757,-603.83516919,0.00018893,2]
[326447185,1714917038767,-159.2,0.00019178,2]
[326447186,1714917038776,-150.79,0.00019178,2]
[326447187,1714917038785,-1749.0834379,0.00019921,2]
[326447188,1714917038794,-1040.32164097,0.00019982,2]
[326447189,1714917038803,-2344.39680726,0.00019982,2]
[326447190,1714917038813,-155.0,0.0002,2]
[326447191,1714917038822,-603.83516919,0.00020236,2]
[326447192,1714917038832,-247.75883199,0.00020412,2]
[326447193,1714917038840,-23900.0,0.00020422,2]
[326447194,1714917038850,-1000.0,0.0002047,2]
[326447195,1714917038859,-2795.8,0.00020476,2]
[326447196,1714917038868,-500.0,0.00020583,2]
[326447197,1714917038877,-197.13,0.00020583,2]
[326447198,1714917038887,-155.0,0.000209,2]
[326447199,1714917038896,-150.0,0.00021235,2]
[326447200,1714917038905,-3792.94,0.00021481,2]
[326447201,1714917038914,-603.83516919,0.00021579,2]
[326447202,1714917038923,-200.0,0.00021654,2]
[326447203,1714917038933,-250.0,0.00021784,2]
[326447204,1714917038942,-234.91,0.00021842,2]
[326447205,1714917038952,-1012.82,0.00021918,2]
[326447206,1714917038961,-250.0,0.00021918,2]
[326447207,1714917038970,-178.29,0.00022051,2]
[326447208,1714917038979,-164.47,0.00022073,2]
[326447209,1714917038989,-1040.32164097,0.00022343,2]
[326447210,1714917038998,-2344.39680726,0.00022343,2]
[326447211,1714917039008,-603.83516919,0.00022922,2]
[326447212,1714917039018,-1000.0,0.00023029,2]
[326447213,1714917039027,-353.47386846,0.000232,2]
[326447214,1714917039037,-157.68895184,0.0002408,2]
[326447215,1714917039046,-179.73027073,0.0002421,2]
[326447216,1714917039055,-180.0,0.0002423,2]
[326447217,1714917039065,-603.83516919,0.00024265,2]
[326447218,1714917039074,-154.52925106,0.00024462,2]
[326447219,1714917039083,-1040.32164097,0.00024703,2]
[326447220,1714917039093,-2344.39680726,0.00024703,2]
[326447221,1714917039102,-39388.10445036,0.00025,2]
[326447222,1714917039111,-3129.61630911,0.00025288,2]
[326447223,1714917039121,-159.2,0.00025379,2]
[326447224,1714917039131,-1000.0,0.00025588,2]
[326447225,1714917039140,-603.83516919,0.00025609,2]
[326447226,1714917039150,-207.38,0.0002589,2]
[326447227,1714917039159,-2597.4218,0.00026463,2]
[326447228,1714917039169,-501.7340345,0.00026561,2]
[326447229,1714917039180,-1063.22566128,0.00026561,2]
[326447230,1714917039190,-408.60896828,0.00026561,2]
[326447231,1714917039201,-155.0,0.00026561,2]
[326447232,1714917039210,-163.26734807,0.00026561,2]
[326447233,1714917039219,-773.40070704,0.00026561,7]
[326447234,1714917039228,-122841.8299586,0.00026563,2]
[326447235,1714917039250,-478.3539069,0.00026563,2]
[326447282,1714917039920,-9368.1868345,0.00026563,2]
[326447286,1714917039931,-603.83516919,0.00026952,2]
[326447289,1714917039940,-1632.7030965,0.00027,7]
[326447293,1714917039953,-10355.6128625,0.00027,7]
[326447296,1714917039962,-157.6526188,0.0002705,2]
[326447298,1714917039972,-167.0,0.00027058,2]
[326447300,1714917039981,-1040.32164097,0.00027064,2]
[326447302,1714917039993,-2344.39680726,0.00027064,2]
[326447304,1714917040002,-191.78,0.00027068,15]
[326447306,1714917040011,-150.36,0.00027397,2]
[326447308,1714917040020,-3563.21,0.00027397,2]
[326447310,1714917040029,-156.68854274,0.00027567,2]
[326447312,1714917040038,-1000.0,0.00028147,2]
[326447314,1714917040048,-1782.0,0.000282,3]
[326447316,1714917040057,-603.83516919,0.00028295,2]
[326447318,1714917040068,-152.10551906,0.00028747,2]
[326447320,1714917040078,-176.75365529,0.00028747,2]
[326447322,1714917040088,-1747.79678126,0.00028747,2]
[326447324,1714917040098,-172.97441447,0.00028747,2]
[326447326,1714917040107,-25799.07972453,0.00028847,2]
[326447328,1714917040120,-68065.57707547,0.00028847,2]
[326447330,1714917040129,-150.36,0.0002911,2]
[326447331,1714917040140,-322.58935212,0.00029123,2]
[326447332,1714917040149,-1747.79678122,0.00029313,2]
[326447333,1714917040158,-1040.32164097,0.00029425,2]
[326447334,1714917040169,-2344.39680726,0.00029425,2]
[326447335,1714917040179,-20000.0,0.00029437,2]
[326447336,1714917040188,-603.83516919,0.00029638,2]
[326447337,1714917040199,-152.10551906,0.00029831,2]
[326447338,1714917040208,-1747.79678122,0.00029878,2]
[326447339,1714917040217,-200.20871114,0.000299,2]
[326447340,1714917040227,-195.35398385,0.000299,2]
[326447341,1714917040239,-1269.58697472,0.000299,2]
[326447342,1714917040248,-1046.68543748,0.000299,2]
[326447343,1714917040257,-250.37971994,0.000299,2]
[326447344,1714917040267,-150.5,0.0002997,15]
[326447345,1714917040277,-211.0,0.0002997,15]
[326447346,1714917040287,-150.5,0.0002998,15]
[326447347,1714917040297,-211.0,0.0002998,15]
[326447348,1714917040306,-222.08151513,0.0002999,2]
[326447349,1714917040316,-150.5,0.0002999,15]
[326447351,1714917040325,-211.0,0.0002999,15]
[326447353,1714917040335,-247.75883199,0.0002999,2]
[326447354,1714917040344,-247.75883199,0.0002999,2]
[326447355,1714917040354,-774.22856361,0.00029996,2]
[326447356,1714917040364,-155.12715275,0.00029997,2]
[326447357,1714917040374,-79687.94106605,0.00029998,7]
[326447358,1714917040383,-1765.89580635,0.00029998,2]
[326447359,1714917040393,-156.3600857,0.00029998,2]
[326447360,1714917040403,-891.58760101,0.00029998,2]
[326447361,1714917040413,-7955.60099757,0.00029998,4]
[326447362,1714917040425,-1053.98522685,0.00029998,4]
[326447363,1714917040436,-500.00773998,0.00029998,4]
[326447364,1714917040485,-77248.2278178,0.00029998,4]
[326447365,1714917040508,-641.26316,0.00029998,4]
[326447366,1714917040530,-475.775,0.00029998,4]
[326447367,1714917040543,-1292.80071015,0.00029998,4]
[326447382,1714917043041,-158.18,0.00029415,10]
[326447383,1714917043051,-25631.81860952,0.00029998,4]
[326447384,1714917043152,-432.0,0.00029998,4]
[326447395,1714917162839,166.09,0.00028535,120]
[326447404,1714917330868,-4000.0,0.000128,2]
[326447405,1714917332096,-4000.0,0.000128,2]
[326447406,1714917332983,-4000.0,0.000128,2]
[326447408,1714917347091,-3217.2156,0.000128,2]
[326447411,1714917811744,399.42482649,0.000128,2]
[326447414,1714917891875,383.35957351,0.0001152,2]
[326447415,1714917891914,189.51304157,0.0001152,2]
[326447416,1714917917803,422.87261508,0.00010368,2]
[326447418,1714917939798,422.87261508,0.00010368,2]
[326447419,1714917955796,422.87261508,0.00010368,2]
[326447420,1714917977803,422.9541034,9.331e-05,2]
[326447421,1714917993797,423.4346937,9.331e-05,2]
[326447471,1714918125771,180000.0,0.0003,120]
[326447472,1714918164766,40.63751205,0.00025008,120]
[326447473,1714918164801,51959.36248795,0.00025008,120]
[326447476,1714918230357,38674.0,0.00025008,120]
[326447499,1714918231984,-377.35579036,0.00016261,2]
[326447500,1714918231995,-926.20661918,0.00016262,2]
[326447501,1714918232009,-926.20661918,0.00016263,2]
[326447502,1714918232018,-186.59849794,0.00016361,2]
[326447503,1714918232028,-240.93871478,0.00016361,2]
[326447504,1714918232047,-1025.82215832,0.00016361,2]
[326447505,1714918232056,-487.99073708,0.00016362,2]
[326447506,1714918232069,-155.0,0.00016363,2]
[326447507,1714918232080,-576.95633422,0.00016363,2]
[326447508,1714918232094,-1356.47305765,0.00016363,2]
[326447509,1714918232118,-2655.73729111,0.00016363,2]
[326447510,1714918232128,-155.0,0.00016364,2]
[326447511,1714918232138,-165.94728317,0.00016553,2]
[326447512,1714918232148,-499.99,0.00016553,2]
[326447513,1714918232157,-151.3,0.00019178,2]
[326447514,1714918232167,-888.0,0.00024875,2]
[326447515,1714918232176,-1589.07772194,0.00025,2]
[326447516,1714918232302,-429.8742519,0.00025,2]
[326447517,1714918232332,-888.0,0.00025,2]
[326447518,1714918232344,-1153.90392012,0.00025,2]
[326447519,1714918232355,-13880.91398736,0.00025,2]
[326447520,1714918232366,-1071.32430337,0.00025,2]
[326447522,1714918232378,-829.59060237,0.00025,2]
[326447525,1714918232496,-857.74670121,0.00025,2]
[326447528,1714918232509,-9511.23617097,0.00025,2]
[326447547,1714918238027,-926.20661918,0.00016263,2]
[326447548,1714918238037,-194.80647627,0.00025,2]
[326447549,1714918238050,-8981.63031485,0.00025,2]
[326447550,1714918238060,-2608.38966738,0.00025,2]
[326447551,1714918238070,-200.0,0.00025548,2]
[326447552,1714918238080,-164.47,0.00026372,2]
[326447553,1714918238089,-200.0,0.00026503,2]
[326447554,1714918238098,-2123.58,0.0002664,2]
[326447555,1714918238108,-250.0,0.00026673,2]
[326447556,1714918238117,-155.95726113,0.00026827,2]
[326447557,1714918238127,-175.79,0.00027068,15]
[326447558,1714918238137,-164.48,0.00027103,2]
[326447559,1714918238146,-1500.0,0.00027114,2]
[326447560,1714918238156,-23900.0,0.00027126,2]
[326447561,1714918238165,-250.0,0.00027354,2]
[326447562,1714918238175,-150.36,0.00027397,2]
[326447563,1714918238184,-500.0,0.00027672,2]
[326447564,1714918238194,-800.0,0.00027902,2]
[326447565,1714918238204,-455.00575217,0.00028,2]
[326447566,1714918238214,-169.08,0.00028245,2]
[326447567,1714918238224,-207.38,0.00028702,2]
[326447568,1714918238233,-2475.94461755,0.00028815,2]
[326447569,1714918238242,-198.0,0.0002897,15]
[326447570,1714918238252,-198.0,0.0002898,15]
[326447571,1714918238261,-150.5,0.0002898,15]
[326447572,1714918238270,-790.9,0.00028986,10]
[326447573,1714918238279,-210.7,0.0002899,15]
[326447574,1714918238289,-150.5,0.0002899,15]
[326447575,1714918238298,-150.5,0.0002899,15]
[326447576,1714918238307,-198.0,0.0002899,15]
[326447577,1714918238316,-150.5,0.0002899,15]
[326447579,1714918238325,-39991.93473305,0.00028996,7]
[326447581,1714918238334,-36132.14180875,0.00028996,4]
[326447582,1714918238401,-301.52429435,0.00028996,4]
[326447583,1714918238433,-708.7166173,0.00028996,4]
[326447584,1714918238444,-1985.592571,0.00028996,4]
[326447585,1714918238455,-24254.06127215,0.00028996,4]
[326447586,1714918238467,-1562.631937,0.00028996,4]
[326447587,1714918238482,-525.02040668,0.00028996,4]
[326447588,1714918238497,-1671.2144788,0.00028996,4]
[326447589,1714918238513,-1295.29761122,0.00028996,4]
[326447590,1714918238524,-126186.55609046,0.00028996,4]
[326447591,1714918238536,-2269.78138808,0.00028996,4]
[326447609,1714918240057,-818.8981374,0.00028996,4]
[326447610,1714918240069,-280.62050714,0.00028996,4]
[326447611,1714918240114,-181337.84735621,0.00028996,4]
[326447612,1714918240125,-401330.47799472,0.00028996,4]
[326447613,1714918240274,-4128.63986883,0.00028996,4]
[326447614,1714918240286,-396.92181228,0.00028996,4]
[326447615,1714918240343,-3120.66598989,0.00028996,4]
[326447616,1714918240387,-3784.32,0.00028996,4]
[326447617,1714918240398,-421.8493653,0.00028996,4]
[326447618,1714918240813,-2064.25573804,0.00028996,4]
[326447641,1714918243159,-428.03097649,0.00028996,4]
[326447642,1714918243214,-764.825,0.00028996,4]
[326447643,1714918243269,-1016.1,0.00028996,4]
[326447644,1714918243326,-10937.08740776,0.00028996,4]